[Event "Titled Tuesday Blitz March 21 Late 2023"]
[White "Turayev, Shahruh"]
[Black "aidenzhouu"]
[WhiteFideId "14003856"]
[WhiteElo "2171"]
[BlackElo "2460"]
[Result "0-1"]
[Round "08"]
[TimeControl "180+2"]
[Date "2023.03.21"]
[WhiteClock "0:01:19"]
[BlackClock "0:00:14"]

1. e4 {[%clk 0:03:00]}  c6 {[%clk 0:02:59]} 2. Nc3 {[%clk 0:03:00]}  d5 {[%clk 0:03:00]} 3. exd5 {[%clk 0:03:00]}  cxd5 {[%clk 0:03:01]} 4. d4 {[%clk 0:03:01]}  Nf6 {[%clk 0:03:00]} 5. Bf4 {[%clk 0:03:02]}  Bg4 {[%clk 0:02:52]} 6. f3 {[%clk 0:03:00]}  Bf5 {[%clk 0:02:50]} 7. Nb5 {[%clk 0:02:59]}  Na6 {[%clk 0:02:47]} 8. c3 {[%clk 0:02:58]}  g6 {[%clk 0:02:27]} 9. Qa4 {[%clk 0:02:56]}  Bd7 {[%clk 0:02:26]} 10. Qd1 {[%clk 0:02:45]}  Bg7 {[%clk 0:02:25]} 11. Bd3 {[%clk 0:02:45]}  O-O {[%clk 0:02:25]} 12. a4 {[%clk 0:02:46]}  Nh5 {[%clk 0:02:18]} 13. Be5 {[%clk 0:02:39]}  Bxe5 {[%clk 0:02:12]} 14. dxe5 {[%clk 0:02:40]}  Nf4 {[%clk 0:01:58]} 15. g3 {[%clk 0:02:36]}  Nxd3+ {[%clk 0:01:58]} 16. Qxd3 {[%clk 0:02:37]}  Bf5 {[%clk 0:01:44]} 17. Qd2 {[%clk 0:02:35]}  Nc5 {[%clk 0:01:44]} 18. Nd4 {[%clk 0:02:31]}  Nd3+ {[%clk 0:01:41]} 19. Kf1 {[%clk 0:02:31]}  Nxe5 {[%clk 0:01:40]} 20. Nxf5 {[%clk 0:02:24]}  gxf5 {[%clk 0:01:40]} 21. Kg2 {[%clk 0:02:21]}  e6 {[%clk 0:01:38]} 22. Ne2 {[%clk 0:02:18]}  Nc4 {[%clk 0:01:37]} 23. Qh6 {[%clk 0:02:16]}  Kh8 {[%clk 0:01:23]} 24. Nf4 {[%clk 0:02:11]}  Rg8 {[%clk 0:01:22]} 25. h4 {[%clk 0:02:11]}  e5 {[%clk 0:01:08]} 26. Nh5 {[%clk 0:01:51]}  Rg6 {[%clk 0:00:57]} 27. Qc1 {[%clk 0:01:49]}  f4 {[%clk 0:00:58]} 28. g4 {[%clk 0:01:48]}  Qb6 {[%clk 0:00:55]} 29. b3 {[%clk 0:01:41]}  Qxb3 {[%clk 0:00:51]} 30. Rb1 {[%clk 0:01:41]}  Qa2+ {[%clk 0:00:51]} 31. Kh3 {[%clk 0:01:41]}  Ne3 {[%clk 0:00:45]} 32. Rh2 {[%clk 0:01:41]}  Qxa4 {[%clk 0:00:32]} 33. Rxb7 {[%clk 0:01:41]}  Qc6 {[%clk 0:00:27]} 34. Rhb2 {[%clk 0:01:40]}  Rag8 {[%clk 0:00:24]} 35. Rxf7 {[%clk 0:01:36]}  d4 {[%clk 0:00:23]} 36. Qh1 {[%clk 0:01:31]}  Rxg4 {[%clk 0:00:20]} 37. Rbb7 {[%clk 0:01:24]}  Rg3+ {[%clk 0:00:15]} 38. Nxg3 {[%clk 0:01:25]}  Rxg3+ {[%clk 0:00:15]} 39. Kh2 {[%clk 0:01:25]}  Ng4+ {[%clk 0:00:12]} 40. fxg4 {[%clk 0:01:22]}  Rh3+ {[%clk 0:00:13]} 41. Kxh3 {[%clk 0:01:19]}  Qxh1# {[%clk 0:00:14]} 0-1


[Site "https://www.chess.com"]

[Event "Titled Tuesday Blitz March 21 Late 2023"]
[White "Tworuszka, Michal"]
[Black "Sielecki, Christof"]
[WhiteFideId "1117858"]
[BlackFideId "4620437"]
[WhiteElo "2455"]
[BlackElo "2443"]
[Result "0-1"]
[Round "08"]
[TimeControl "180+2"]
[Date "2023.03.21"]
[WhiteClock "0:00:24"]
[BlackClock "0:00:27"]

1. e4 {[%clk 0:03:00]}  c5 {[%clk 0:02:59]} 2. Nf3 {[%clk 0:03:01]}  a6 {[%clk 0:03:00]} 3. Nc3 {[%clk 0:02:59]}  b5 {[%clk 0:02:59]} 4. d4 {[%clk 0:02:59]}  cxd4 {[%clk 0:02:59]} 5. Nxd4 {[%clk 0:03:00]}  e6 {[%clk 0:03:00]} 6. Bd3 {[%clk 0:02:59]}  Qb6 {[%clk 0:03:00]} 7. Nb3 {[%clk 0:02:43]}  Qc7 {[%clk 0:02:59]} 8. O-O {[%clk 0:02:41]}  Bb7 {[%clk 0:02:59]} 9. f4 {[%clk 0:02:34]}  b4 {[%clk 0:02:56]} 10. Ne2 {[%clk 0:02:32]}  Nf6 {[%clk 0:02:56]} 11. Ng3 {[%clk 0:02:31]}  h5 {[%clk 0:02:56]} 12. Qe1 {[%clk 0:01:39]}  h4 {[%clk 0:02:55]} 13. Nh1 {[%clk 0:01:40]}  h3 {[%clk 0:02:50]} 14. g3 {[%clk 0:01:35]}  a5 {[%clk 0:02:47]} 15. Nf2 {[%clk 0:01:31]}  a4 {[%clk 0:02:46]} 16. Nd2 {[%clk 0:01:32]}  Bc5 {[%clk 0:02:46]} 17. Kh1 {[%clk 0:01:24]}  d6 {[%clk 0:02:23]} 18. Nf3 {[%clk 0:01:24]}  Nbd7 {[%clk 0:02:21]} 19. Be3 {[%clk 0:01:24]}  d5 {[%clk 0:02:12]} 20. Ng5 {[%clk 0:01:02]}  dxe4 {[%clk 0:02:03]} 21. Nfxe4 {[%clk 0:01:00]}  Bxe3 {[%clk 0:01:54]} 22. Qxe3 {[%clk 0:00:59]}  Nd5 {[%clk 0:01:43]} 23. Qd4 {[%clk 0:00:57]}  O-O {[%clk 0:01:37]} 24. Kg1 {[%clk 0:00:54]}  e5 {[%clk 0:01:28]} 25. fxe5 {[%clk 0:00:46]}  Nxe5 {[%clk 0:01:28]} 26. Nc5 {[%clk 0:00:38]}  Nxd3 {[%clk 0:01:16]} 27. cxd3 {[%clk 0:00:35]}  Nf6 {[%clk 0:00:45]} 28. Nxb7 {[%clk 0:00:30]}  Qxb7 {[%clk 0:00:44]} 29. Ne4 {[%clk 0:00:28]}  Nxe4 {[%clk 0:00:40]} 30. Qxe4 {[%clk 0:00:28]}  Qb6+ {[%clk 0:00:40]} 31. d4 {[%clk 0:00:28]}  Rad8 {[%clk 0:00:40]} 32. Rad1 {[%clk 0:00:28]}  Rd6 {[%clk 0:00:39]} 33. Rf2 {[%clk 0:00:26]}  Re6 {[%clk 0:00:36]} 34. Qg4 {[%clk 0:00:25]}  b3 {[%clk 0:00:27]} 35. axb3 {[%clk 0:00:24]}  Qxb3 {[%clk 0:00:27]} 36. Qxh3 {[%clk 0:00:24]}  Qxd1+ {[%clk 0:00:27]} 0-1


[Site "https://www.chess.com"]

[Event "Titled Tuesday Blitz March 21 Late 2023"]
[White "Sivakumar, Shaaketh"]
[Black "Ronka, Erik"]
[WhiteFideId "30940176"]
[BlackFideId "505080"]
[WhiteElo "2174"]
[BlackElo "2264"]
[Result "1-0"]
[Round "08"]
[TimeControl "180+2"]
[Date "2023.03.21"]
[WhiteClock "0:01:36"]
[BlackClock "0:00:03"]

1. c4 {[%clk 0:02:59]}  c6 {[%clk 0:02:59]} 2. Nf3 {[%clk 0:03:00]}  d5 {[%clk 0:03:00]} 3. e3 {[%clk 0:02:59]}  Nf6 {[%clk 0:03:00]} 4. b3 {[%clk 0:03:00]}  Bg4 {[%clk 0:03:00]} 5. Bb2 {[%clk 0:03:00]}  Nbd7 {[%clk 0:03:00]} 6. Be2 {[%clk 0:03:00]}  e6 {[%clk 0:03:01]} 7. O-O {[%clk 0:03:00]}  Bd6 {[%clk 0:03:01]} 8. d3 {[%clk 0:03:00]}  O-O {[%clk 0:03:01]} 9. Nbd2 {[%clk 0:02:59]}  Qe7 {[%clk 0:03:01]} 10. Re1 {[%clk 0:02:58]}  e5 {[%clk 0:03:00]} 11. e4 {[%clk 0:02:57]}  dxe4 {[%clk 0:02:59]} 12. Nxe4 {[%clk 0:02:57]}  Nxe4 {[%clk 0:02:58]} 13. dxe4 {[%clk 0:02:57]}  a5 {[%clk 0:02:55]} 14. h3 {[%clk 0:02:57]}  Bxf3 {[%clk 0:02:55]} 15. Bxf3 {[%clk 0:02:58]}  Rfd8 {[%clk 0:02:55]} 16. Qe2 {[%clk 0:02:57]}  Nf8 {[%clk 0:02:45]} 17. Red1 {[%clk 0:02:57]}  Ne6 {[%clk 0:02:42]} 18. g3 {[%clk 0:02:57]}  f6 {[%clk 0:02:38]} 19. Bg4 {[%clk 0:02:57]}  Bc5 {[%clk 0:02:10]} 20. Bxe6+ {[%clk 0:02:55]}  Qxe6 {[%clk 0:02:11]} 21. Kg2 {[%clk 0:02:55]}  a4 {[%clk 0:02:01]} 22. Rd3 {[%clk 0:02:50]}  a3 {[%clk 0:01:58]} 23. Bc3 {[%clk 0:02:49]}  Bd4 {[%clk 0:01:55]} 24. Bxd4 {[%clk 0:02:46]}  exd4 {[%clk 0:01:56]} 25. Rad1 {[%clk 0:02:46]}  c5 {[%clk 0:01:56]} 26. f3 {[%clk 0:02:44]}  Re8 {[%clk 0:01:45]} 27. Qd2 {[%clk 0:02:43]}  Re7 {[%clk 0:01:41]} 28. b4 {[%clk 0:02:41]}  b6 {[%clk 0:01:40]} 29. Re1 {[%clk 0:02:38]}  Qxc4 {[%clk 0:01:32]} 30. bxc5 {[%clk 0:02:36]}  bxc5 {[%clk 0:01:31]} 31. Rc1 {[%clk 0:02:36]}  Qb5 {[%clk 0:01:28]} 32. Rb3 {[%clk 0:02:36]}  Qc6 {[%clk 0:00:54]} 33. Qxd4 {[%clk 0:02:34]}  Rc8 {[%clk 0:00:51]} 34. Qc4+ {[%clk 0:02:32]}  Kh8 {[%clk 0:00:50]} 35. Rxa3 {[%clk 0:02:32]}  Rd7 {[%clk 0:00:49]} 36. Rc2 {[%clk 0:02:31]}  Qd6 {[%clk 0:00:43]} 37. Re3 {[%clk 0:02:29]}  h6 {[%clk 0:00:42]} 38. Ree2 {[%clk 0:02:29]}  Qd1 {[%clk 0:00:40]} 39. Qc3 {[%clk 0:02:20]}  c4 {[%clk 0:00:29]} 40. Re1 {[%clk 0:02:14]}  Qd6 {[%clk 0:00:26]} 41. Rec1 {[%clk 0:02:13]}  Qa6 {[%clk 0:00:17]} 42. h4 {[%clk 0:02:13]}  Qe6 {[%clk 0:00:09]} 43. Qb4 {[%clk 0:02:09]}  Rdc7 {[%clk 0:00:08]} 44. a4 {[%clk 0:02:08]}  c3 {[%clk 0:00:08]} 45. Rxc3 {[%clk 0:02:05]}  Rxc3 {[%clk 0:00:09]} 46. Rxc3 {[%clk 0:02:04]}  Rxc3 {[%clk 0:00:10]} 47. Qxc3 {[%clk 0:02:05]}  Qa2+ {[%clk 0:00:11]} 48. Kh3 {[%clk 0:02:05]}  Qxa4 {[%clk 0:00:12]} 49. Qc8+ {[%clk 0:02:04]}  Kh7 {[%clk 0:00:12]} 50. Qf5+ {[%clk 0:02:05]}  Kh8 {[%clk 0:00:12]} 51. g4 {[%clk 0:02:04]}  Qe8 {[%clk 0:00:12]} 52. Kg3 {[%clk 0:02:00]}  Qb8+ {[%clk 0:00:11]} 53. Qf4 {[%clk 0:02:01]}  Qe8 {[%clk 0:00:11]} 54. Qd6 {[%clk 0:02:00]}  Kg8 {[%clk 0:00:10]} 55. Kf4 {[%clk 0:02:00]}  Qa4 {[%clk 0:00:10]} 56. Qd8+ {[%clk 0:01:59]}  Kh7 {[%clk 0:00:11]} 57. Qd3 {[%clk 0:01:56]}  Qa1 {[%clk 0:00:10]} 58. e5+ {[%clk 0:01:54]}  Kg8 {[%clk 0:00:09]} 59. Qd8+ {[%clk 0:01:52]}  Kf7 {[%clk 0:00:09]} 60. Qd7+ {[%clk 0:01:52]}  Kg6 {[%clk 0:00:09]} 61. Qd3+ {[%clk 0:01:47]}  Kf7 {[%clk 0:00:09]} 62. Qc4+ {[%clk 0:01:46]}  Kg6 {[%clk 0:00:09]} 63. Qe4+ {[%clk 0:01:46]}  Kf7 {[%clk 0:00:09]} 64. Qb7+ {[%clk 0:01:46]}  Kg6 {[%clk 0:00:10]} 65. Qe4+ {[%clk 0:01:46]}  Kf7 {[%clk 0:00:10]} 66. exf6 {[%clk 0:01:41]}  Kxf6 {[%clk 0:00:09]} 67. Qf5+ {[%clk 0:01:40]}  Ke7 {[%clk 0:00:09]} 68. Qe5+ {[%clk 0:01:40]}  Qxe5+ {[%clk 0:00:08]} 69. Kxe5 {[%clk 0:01:41]}  Kf7 {[%clk 0:00:09]} 70. h5 {[%clk 0:01:41]}  Ke7 {[%clk 0:00:09]} 71. Kf5 {[%clk 0:01:40]}  Kf7 {[%clk 0:00:10]} 72. f4 {[%clk 0:01:41]}  Kf8 {[%clk 0:00:10]} 73. Kg6 {[%clk 0:01:41]}  Kg8 {[%clk 0:00:10]} 74. f5 {[%clk 0:01:42]}  Kf8 {[%clk 0:00:11]} 75. f6 {[%clk 0:01:43]}  Kg8 {[%clk 0:00:08]} 76. Kf5 {[%clk 0:01:37]}  Kf7 {[%clk 0:00:08]} 77. fxg7 {[%clk 0:01:36]}  Kxg7 {[%clk 0:00:08]} 78. Ke6 {[%clk 0:01:37]}  Kh7 {[%clk 0:00:03]} 79. Kf6 {[%clk 0:01:37]}  Kh8 {[%clk 0:00:03]} 80. Kg6 {[%clk 0:01:36]} 1-0


[Site "https://www.chess.com"]

[Event "Titled Tuesday Blitz March 21 Late 2023"]
[White "Yelisieiev, Yevhenii"]
[Black "Toktomushev, Teimur"]
[WhiteFideId "14139642"]
[BlackFideId "14176726"]
[WhiteElo "2447"]
[BlackElo "2116"]
[Result "0-1"]
[Round "08"]
[TimeControl "180+2"]
[Date "2023.03.21"]
[WhiteClock "0:00:01"]
[BlackClock "0:00:05"]

1. d4 {[%clk 0:03:00]}  d5 {[%clk 0:02:59]} 2. Nf3 {[%clk 0:03:00]}  Nf6 {[%clk 0:02:59]} 3. c4 {[%clk 0:02:59]}  e6 {[%clk 0:03:00]} 4. Nc3 {[%clk 0:02:59]}  Be7 {[%clk 0:02:59]} 5. Bg5 {[%clk 0:02:59]}  O-O {[%clk 0:02:59]} 6. e3 {[%clk 0:02:59]}  h6 {[%clk 0:02:59]} 7. Bh4 {[%clk 0:02:59]}  b6 {[%clk 0:02:59]} 8. cxd5 {[%clk 0:02:59]}  Nxd5 {[%clk 0:02:55]} 9. Bxe7 {[%clk 0:02:59]}  Qxe7 {[%clk 0:02:56]} 10. Nxd5 {[%clk 0:02:58]}  exd5 {[%clk 0:02:57]} 11. Be2 {[%clk 0:02:58]}  Bb7 {[%clk 0:02:52]} 12. O-O {[%clk 0:02:58]}  Nd7 {[%clk 0:02:51]} 13. Rc1 {[%clk 0:02:58]}  c5 {[%clk 0:02:50]} 14. dxc5 {[%clk 0:02:52]}  bxc5 {[%clk 0:02:49]} 15. Qa4 {[%clk 0:02:50]}  d4 {[%clk 0:02:19]} 16. exd4 {[%clk 0:01:04]}  Qxe2 {[%clk 0:02:11]} 17. Qxd7 {[%clk 0:01:01]}  Bxf3 {[%clk 0:02:08]} 18. Rfe1 {[%clk 0:00:58]}  Qxb2 {[%clk 0:02:03]} 19. gxf3 {[%clk 0:00:55]}  cxd4 {[%clk 0:01:52]} 20. Rb1 {[%clk 0:00:42]}  Qc3 {[%clk 0:01:33]} 21. Rec1 {[%clk 0:00:41]}  Qxf3 {[%clk 0:01:30]} 22. Qxd4 {[%clk 0:00:41]}  Rfe8 {[%clk 0:01:21]} 23. Rb3 {[%clk 0:00:31]}  Qf5 {[%clk 0:01:07]} 24. Rg3 {[%clk 0:00:30]}  g6 {[%clk 0:00:59]} 25. Rc7 {[%clk 0:00:24]}  Rad8 {[%clk 0:00:50]} 26. Qa1 {[%clk 0:00:15]}  Rd2 {[%clk 0:00:44]} 27. Qf1 {[%clk 0:00:07]}  Red8 {[%clk 0:00:21]} 28. Rc1 {[%clk 0:00:05]}  Qh5 {[%clk 0:00:16]} 29. Re1 {[%clk 0:00:01]}  Rd1 {[%clk 0:00:12]} 30. Rge3 {[%clk 0:00:01]}  R8d5 {[%clk 0:00:06]} 31. Kh1 {[%clk 0:00:01]}  Rxe1 {[%clk 0:00:05]} 32. Rxe1 {[%clk 0:00:01]}  Rg5 {[%clk 0:00:05]} 0-1


[Site "https://www.chess.com"]

[Event "Titled Tuesday Blitz March 21 Late 2023"]
[White "Petukhov, Dmitry"]
[Black "marik_spb"]
[WhiteFideId "4142748"]
[WhiteElo "2311"]
[BlackElo "2421"]
[Result "1-0"]
[Round "08"]
[TimeControl "180+2"]
[Date "2023.03.21"]
[WhiteClock "0:00:29"]
[BlackClock "0:00:01"]

1. e4 {[%clk 0:02:45]}  c6 {[%clk 0:02:57]} 2. d4 {[%clk 0:02:45]}  d5 {[%clk 0:02:57]} 3. Nd2 {[%clk 0:02:46]}  dxe4 {[%clk 0:02:57]} 4. Nxe4 {[%clk 0:02:47]}  Nf6 {[%clk 0:02:58]} 5. Nxf6+ {[%clk 0:02:47]}  exf6 {[%clk 0:02:59]} 6. c3 {[%clk 0:02:46]}  Bd6 {[%clk 0:02:59]} 7. Bd3 {[%clk 0:02:47]}  Na6 {[%clk 0:02:57]} 8. Qh5 {[%clk 0:02:46]}  Nc7 {[%clk 0:02:37]} 9. Ne2 {[%clk 0:02:39]}  g6 {[%clk 0:02:25]} 10. Qh4 {[%clk 0:02:37]}  h5 {[%clk 0:02:13]} 11. f4 {[%clk 0:02:28]}  Nd5 {[%clk 0:01:50]} 12. O-O {[%clk 0:02:25]}  f5 {[%clk 0:01:46]} 13. Qxd8+ {[%clk 0:02:23]}  Kxd8 {[%clk 0:01:47]} 14. a3 {[%clk 0:02:17]}  h4 {[%clk 0:01:44]} 15. c4 {[%clk 0:02:14]}  Nf6 {[%clk 0:01:44]} 16. h3 {[%clk 0:02:12]}  Ne4 {[%clk 0:01:38]} 17. Nc3 {[%clk 0:02:12]}  Ng3 {[%clk 0:01:35]} 18. Re1 {[%clk 0:02:10]}  Bd7 {[%clk 0:01:35]} 19. Bd2 {[%clk 0:02:09]}  Kc7 {[%clk 0:01:33]} 20. c5 {[%clk 0:02:04]}  Bf8 {[%clk 0:01:31]} 21. b4 {[%clk 0:02:02]}  Bg7 {[%clk 0:01:29]} 22. d5 {[%clk 0:01:59]}  Rae8 {[%clk 0:01:16]} 23. d6+ {[%clk 0:01:58]}  Kd8 {[%clk 0:01:14]} 24. Rxe8+ {[%clk 0:01:52]}  Rxe8 {[%clk 0:01:13]} 25. Re1 {[%clk 0:01:53]}  Bd4+ {[%clk 0:01:07]} 26. Kh2 {[%clk 0:01:52]}  Be6 {[%clk 0:00:46]} 27. Ne2 {[%clk 0:01:42]}  Bf2 {[%clk 0:00:46]} 28. Rb1 {[%clk 0:01:35]}  Bd5 {[%clk 0:00:45]} 29. Nc3 {[%clk 0:01:21]}  Be4 {[%clk 0:00:40]} 30. Bxe4 {[%clk 0:01:17]}  fxe4 {[%clk 0:00:41]} 31. Be1 {[%clk 0:01:15]}  e3 {[%clk 0:00:27]} 32. b5 {[%clk 0:01:14]}  cxb5 {[%clk 0:00:15]} 33. Nxb5 {[%clk 0:01:15]}  Bxe1 {[%clk 0:00:12]} 34. Rxe1 {[%clk 0:01:14]}  Re4 {[%clk 0:00:11]} 35. Nxa7 {[%clk 0:01:06]}  e2 {[%clk 0:00:11]} 36. Nb5 {[%clk 0:01:03]}  Rxf4 {[%clk 0:00:10]} 37. Nc3 {[%clk 0:00:51]}  Rf1 {[%clk 0:00:10]} 38. Rxe2 {[%clk 0:00:51]}  Nxe2 {[%clk 0:00:10]} 39. Nxe2 {[%clk 0:00:51]}  Ra1 {[%clk 0:00:09]} 40. Nd4 {[%clk 0:00:45]}  Rxa3 {[%clk 0:00:09]} 41. c6 {[%clk 0:00:46]}  bxc6 {[%clk 0:00:09]} 42. Nxc6+ {[%clk 0:00:47]}  Ke8 {[%clk 0:00:08]} 43. Ne5 {[%clk 0:00:48]}  Re3 {[%clk 0:00:07]} 44. d7+ {[%clk 0:00:46]}  Ke7 {[%clk 0:00:06]} 45. Nxf7 {[%clk 0:00:43]}  Kxd7 {[%clk 0:00:06]} 46. Ng5 {[%clk 0:00:43]}  Ke7 {[%clk 0:00:05]} 47. Nf3 {[%clk 0:00:41]}  Re4 {[%clk 0:00:04]} 48. Kg1 {[%clk 0:00:38]}  Kf6 {[%clk 0:00:04]} 49. Kf2 {[%clk 0:00:39]}  g5 {[%clk 0:00:05]} 50. Nh2 {[%clk 0:00:38]}  Kf5 {[%clk 0:00:04]} 51. Kf3 {[%clk 0:00:37]}  Ra4 {[%clk 0:00:04]} 52. Ng4 {[%clk 0:00:37]}  Ra3+ {[%clk 0:00:04]} 53. Ne3+ {[%clk 0:00:37]}  Ke5 {[%clk 0:00:03]} 54. Kf2 {[%clk 0:00:35]}  Ke4 {[%clk 0:00:03]} 55. Ng4 {[%clk 0:00:30]}  Ra2+ {[%clk 0:00:03]} 56. Kg1 {[%clk 0:00:29]}  Kf4 {[%clk 0:00:03]} 57. Kh2 {[%clk 0:00:29]}  Re2 {[%clk 0:00:01]} 58. Nh6 {[%clk 0:00:29]} 1-0


[Site "https://www.chess.com"]

[Event "Titled Tuesday Blitz March 21 Late 2023"]
[White "Reprintsev, Alexander"]
[Black "Castellanos Gomez, Alejandro"]
[WhiteFideId "14100541"]
[BlackFideId "22284141"]
[WhiteElo "2229"]
[BlackElo "2158"]
[Result "1-0"]
[Round "08"]
[TimeControl "180+2"]
[Date "2023.03.21"]
[WhiteClock "0:01:40"]
[BlackClock "0:00:02"]

1. e4 {[%clk 0:02:57]}  e6 {[%clk 0:03:00]} 2. d4 {[%clk 0:02:56]}  d5 {[%clk 0:03:01]} 3. Nc3 {[%clk 0:02:56]}  Bb4 {[%clk 0:02:59]} 4. Ne2 {[%clk 0:02:56]}  dxe4 {[%clk 0:02:59]} 5. a3 {[%clk 0:02:55]}  Be7 {[%clk 0:02:59]} 6. Nxe4 {[%clk 0:02:55]}  Nf6 {[%clk 0:03:00]} 7. Qd3 {[%clk 0:02:53]}  Nbd7 {[%clk 0:02:58]} 8. N2c3 {[%clk 0:02:49]}  c5 {[%clk 0:02:53]} 9. dxc5 {[%clk 0:02:41]}  Nxc5 {[%clk 0:02:48]} 10. Qxd8+ {[%clk 0:02:40]}  Kxd8 {[%clk 0:02:47]} 11. Nxc5 {[%clk 0:02:40]}  Bxc5 {[%clk 0:02:47]} 12. Bf4 {[%clk 0:02:35]}  Ke7 {[%clk 0:02:43]} 13. f3 {[%clk 0:02:34]}  Rd8 {[%clk 0:02:40]} 14. Bd3 {[%clk 0:02:33]}  Nh5 {[%clk 0:02:27]} 15. Bd2 {[%clk 0:02:32]}  Bd7 {[%clk 0:02:10]} 16. O-O-O {[%clk 0:02:27]}  Nf6 {[%clk 0:02:05]} 17. Ne4 {[%clk 0:02:22]}  Nxe4 {[%clk 0:02:01]} 18. Bxe4 {[%clk 0:02:22]}  Bc6 {[%clk 0:01:57]} 19. Bxc6 {[%clk 0:02:21]}  bxc6 {[%clk 0:01:56]} 20. c4 {[%clk 0:02:18]}  Bd4 {[%clk 0:01:53]} 21. Kc2 {[%clk 0:02:15]}  c5 {[%clk 0:01:49]} 22. b4 {[%clk 0:02:15]}  Rac8 {[%clk 0:01:37]} 23. b5 {[%clk 0:02:14]}  f5 {[%clk 0:01:33]} 24. Bg5+ {[%clk 0:02:10]}  Bf6 {[%clk 0:01:33]} 25. Bxf6+ {[%clk 0:02:10]}  Kxf6 {[%clk 0:01:31]} 26. a4 {[%clk 0:02:10]}  Rd4 {[%clk 0:01:30]} 27. Rxd4 {[%clk 0:02:02]}  cxd4 {[%clk 0:01:30]} 28. Kd3 {[%clk 0:02:02]}  e5 {[%clk 0:01:25]} 29. f4 {[%clk 0:02:01]}  exf4 {[%clk 0:01:17]} 30. Kxd4 {[%clk 0:02:01]}  g5 {[%clk 0:01:14]} 31. c5 {[%clk 0:02:01]}  Rd8+ {[%clk 0:01:12]} 32. Kc4 {[%clk 0:02:01]}  g4 {[%clk 0:01:12]} 33. c6 {[%clk 0:02:00]}  h5 {[%clk 0:00:55]} 34. a5 {[%clk 0:01:59]}  Rd2 {[%clk 0:00:38]} 35. b6 {[%clk 0:01:59]}  Rc2+ {[%clk 0:00:37]} 36. Kb5 {[%clk 0:01:59]}  a6+ {[%clk 0:00:29]} 37. Kxa6 {[%clk 0:01:58]}  Rxc6 {[%clk 0:00:29]} 38. Kb7 {[%clk 0:01:58]}  Re6 {[%clk 0:00:27]} 39. a6 {[%clk 0:01:58]}  Re7+ {[%clk 0:00:26]} 40. Kc6 {[%clk 0:01:56]}  Re6+ {[%clk 0:00:27]} 41. Kc7 {[%clk 0:01:56]}  Re7+ {[%clk 0:00:26]} 42. Kd8 {[%clk 0:01:56]}  Re6 {[%clk 0:00:20]} 43. Rb1 {[%clk 0:01:54]}  Kf7 {[%clk 0:00:08]} 44. a7 {[%clk 0:01:53]}  f3 {[%clk 0:00:07]} 45. gxf3 {[%clk 0:01:52]}  gxf3 {[%clk 0:00:08]} 46. b7 {[%clk 0:01:51]}  Re8+ {[%clk 0:00:05]} 47. Kc7 {[%clk 0:01:51]}  Re7+ {[%clk 0:00:06]} 48. Kc6 {[%clk 0:01:50]}  Re6+ {[%clk 0:00:02]} 49. Kd5 {[%clk 0:01:50]}  f2 {[%clk 0:00:02]} 50. b8=Q {[%clk 0:01:48]}  Re1 {[%clk 0:00:02]} 51. Rb7+ {[%clk 0:01:41]}  Kg6 {[%clk 0:00:02]} 52. Qg8+ {[%clk 0:01:41]}  Kf6 {[%clk 0:00:02]} 53. Qg7# {[%clk 0:01:40]} 1-0


[Site "https://www.chess.com"]

[Event "Titled Tuesday Blitz March 21 Late 2023"]
[White "Romkachess"]
[Black "Wizard_of_Odds"]
[WhiteElo "2508"]
[BlackElo "2362"]
[Result "0-1"]
[Round "08"]
[TimeControl "180+2"]
[Date "2023.03.21"]
[WhiteClock "0:00:07"]
[BlackClock "0:00:06"]

1. e4 {[%clk 0:03:00]}  e6 {[%clk 0:02:45]} 2. d4 {[%clk 0:02:57]}  d5 {[%clk 0:02:45]} 3. Nc3 {[%clk 0:02:57]}  Nc6 {[%clk 0:02:45]} 4. Nf3 {[%clk 0:02:55]}  Nf6 {[%clk 0:02:45]} 5. Bg5 {[%clk 0:02:44]}  Be7 {[%clk 0:02:36]} 6. e5 {[%clk 0:02:16]}  Ne4 {[%clk 0:02:35]} 7. Bxe7 {[%clk 0:01:55]}  Qxe7 {[%clk 0:02:36]} 8. Bd3 {[%clk 0:01:53]}  Qb4 {[%clk 0:02:35]} 9. O-O {[%clk 0:01:48]}  Nxc3 {[%clk 0:02:34]} 10. bxc3 {[%clk 0:01:35]}  Qxc3 {[%clk 0:02:34]} 11. h4 {[%clk 0:01:30]}  Bd7 {[%clk 0:02:26]} 12. Rb1 {[%clk 0:01:30]}  Na5 {[%clk 0:01:45]} 13. h5 {[%clk 0:01:23]}  h6 {[%clk 0:01:43]} 14. Qe2 {[%clk 0:01:08]}  Qa3 {[%clk 0:01:35]} 15. Qd2 {[%clk 0:00:41]}  b6 {[%clk 0:01:14]} 16. c3 {[%clk 0:00:36]}  Rd8 {[%clk 0:00:53]} 17. Rfc1 {[%clk 0:00:31]}  Nc4 {[%clk 0:00:51]} 18. Qf4 {[%clk 0:00:30]}  Qe7 {[%clk 0:00:41]} 19. Qg4 {[%clk 0:00:22]}  O-O {[%clk 0:00:39]} 20. Qf4 {[%clk 0:00:18]}  c5 {[%clk 0:00:29]} 21. Nh2 {[%clk 0:00:10]}  Rc8 {[%clk 0:00:20]} 22. Ng4 {[%clk 0:00:10]}  Qg5 {[%clk 0:00:19]} 23. Qf3 {[%clk 0:00:08]}  Nd2 {[%clk 0:00:19]} 24. Qg3 {[%clk 0:00:06]}  Nxb1 {[%clk 0:00:17]} 25. Rxb1 {[%clk 0:00:07]}  cxd4 {[%clk 0:00:17]} 26. f4 {[%clk 0:00:06]}  Qe7 {[%clk 0:00:08]} 27. cxd4 {[%clk 0:00:05]}  Kh8 {[%clk 0:00:06]} 28. Qf3 {[%clk 0:00:04]}  Rc3 {[%clk 0:00:04]} 29. Rd1 {[%clk 0:00:05]}  Rfc8 {[%clk 0:00:05]} 30. Nf2 {[%clk 0:00:05]}  Rc1 {[%clk 0:00:05]} 31. g4 {[%clk 0:00:05]}  Rxd1+ {[%clk 0:00:05]} 32. Qxd1 {[%clk 0:00:05]}  Qh4 {[%clk 0:00:05]} 33. Kg2 {[%clk 0:00:06]}  Rc3 {[%clk 0:00:05]} 34. f5 {[%clk 0:00:04]}  exf5 {[%clk 0:00:04]} 35. gxf5 {[%clk 0:00:05]}  Qg5+ {[%clk 0:00:05]} 36. Kh2 {[%clk 0:00:04]}  Bxf5 {[%clk 0:00:05]} 37. Qf3 {[%clk 0:00:04]}  Bxd3 {[%clk 0:00:04]} 38. Nxd3 {[%clk 0:00:05]}  Qh4+ {[%clk 0:00:04]} 39. Kg2 {[%clk 0:00:05]}  Qe4 {[%clk 0:00:04]} 40. Qxe4 {[%clk 0:00:03]}  dxe4 {[%clk 0:00:05]} 41. Nf4 {[%clk 0:00:04]}  Rc2+ {[%clk 0:00:05]} 42. Kg3 {[%clk 0:00:04]}  Rxa2 {[%clk 0:00:05]} 43. d5 {[%clk 0:00:05]}  Rd2 {[%clk 0:00:06]} 44. d6 {[%clk 0:00:05]}  Kg8 {[%clk 0:00:06]} 45. Ng2 {[%clk 0:00:05]}  Rd3+ {[%clk 0:00:05]} 46. Ne3 {[%clk 0:00:06]}  Rxe3+ {[%clk 0:00:05]} 47. Kf4 {[%clk 0:00:07]}  Rd3 {[%clk 0:00:05]} 48. Kxe4 {[%clk 0:00:07]}  Rd1 {[%clk 0:00:06]} 0-1


[Site "https://www.chess.com"]